[Event "Bamberg-Open 2019"]
[Site "Bamberg"]
[Date "2019.06.01"]
[Round "6.14"]
[White "Troyke, Christian"]
[Black "Wehner, Janis"]
[Result "1-0"]
[ECO "A39"]
[WhiteElo "2328"]
[BlackElo "2128"]
[Annotator "ChessBase"]
[PlyCount "91"]
[EventDate "2019.05.12"]
[EventType "swiss"]
[EventCountry "GER"]
[SourceTitle "playchess.com"]
[Source "ChessBase"]
[SourceQuality "1"]
[TimeControl "40/5400+30:900+30"]

1. g3 {[%emt 0:00:00]} c5 {[%emt 0:00:00]} 2. Bg2 {[%emt 0:00:00]} Nc6 {[%emt 0:00:00]} 3. c4 {[%emt 0:00:00]} Nf6 {[%emt 0:00:00]} 4. Nf3 {[%emt 0:00:19]} g6 {[%emt 0:00:00]} 5. Nc3 {[%emt 0:00:18]} Bg7 {[%emt 0:00:00]} 6. O-O {[%emt 0:00:16]} O-O {[%emt 0:00:00]} 7. d4 {[%emt 0:00:08]} cxd4 {[%emt 0:00:00]} 8. Nxd4 {[%emt 0:00:08]} Ng4 {[%emt 0:00:02]} 9. e3 {[%emt 0:00:16]} d6 {[%emt 0:00:06]} 10. Nce2 {[%emt 0:00:25]} Bd7 {[%emt 0:00:14]} 11. Bd2 {[%emt 0:03:14]} Qb6 {[%emt 0:02:04]} 12. Bc3 {[%emt 0:00:52]} Rfc8 {[%emt 0:00:18]} 13. b3 {[%emt 0:01:16]} Qd8 {[%emt 0:04:18]} 14. Qd2 {[%emt 0:00:56]} Rab8 {[%emt 0:00:26]} 15. Rfd1 {[%emt 0:06:29]} a6 {[%emt 0:01:53]} 16. a4 {[%emt 0:06:46]} Nxd4 {[%emt 0:09:57]} 17. Nxd4 {[%emt 0:00:33]} Ne5 {[%emt 0:02:40]} 18. Rac1 {[%emt 0:06:17]} Nc6 {[%emt 0:02:35]} 19. h3 {[%emt 0:06:22]} Nxd4 {[%emt 0:33:32]} 20. exd4 {[%emt 0:14:18]} Bc6 {[%emt 0:00:14]} 21. d5 {[%emt 0:01:55]} Be8 {[%emt 0:02:59]} 22. Re1 {[%emt 0:02:06]} b5 {[%emt 0:00:38]} 23. Bxg7 {[%emt 0:02:18]} Kxg7 {[%emt 0:00:04]} 24. cxb5 {[%emt 0:00:16]} axb5 {[%emt 0:00:06]} 25. a5 {[%emt 0:00:21]} Rxc1 {[%emt 0:01:00]} 26. Rxc1 {[%emt 0:00:54]} b4 {[%emt 0:00:04]} 27. Ra1 {[%emt 0:01:27]} Qc7 {[%emt 0:11:46]} 28. Bf1 {[%emt 0:05:13]} Bb5 {[%emt 0:05:02]} 29. a6 {[%emt 0:03:06]} Bxf1 {[%emt 0:00:59]} 30. Kxf1 {[%emt 0:02:47]} Qc5 {[%emt 0:01:23]} 31. Ra4 {[%emt 0:09:07]} Ra8 {[%emt 0:02:42]} 32. Qd3 {[%emt 0:05:33]} e6 {[%emt 0:09:14]} 33. dxe6 {[%emt 0:03:21]} fxe6 {[%emt 0:00:02]} 34. Kg1 {[%emt 0:08:25]} d5 {[%emt 0:04:59]} 35. Qd2 {[%emt 0:02:52]} Qc3 {[%emt 0:01:22]} 36. Qg5 {[%emt 0:00:36]} Qxb3 {[%emt 0:06:23]} 37. Qe7+ {[%emt 0:00:24]} Kh8 {[%emt 0:00:49]} 38. Qf6+ {[%emt 0:01:26]} Kg8 {[%emt 0:00:01]} 39. Qxe6+ {[%emt 0:00:09]} Kh8 {[%emt 0:00:01]} 40. Ra5 {[%emt 0:04:04]} Qb1+ {[%emt 0:01:28]} 41. Kh2 {[%emt 0:16:29]} Qf5 {[%emt 0:03:10]} 42. Qe3 {[%emt 0:00:00]} b3 {[%emt 0:01:29]} 43. Qd4+ {[%emt 0:00:00]} Kg8 {[%emt 0:00:17]} 44. Rxd5 {[%emt 0:00:00]} Qf8 {[%emt 0:02:53]} 45. a7 {[%emt 0:00:00]} b2 46. Rb5 1-0

[Event "Bamberg-Open 2019"]
[Site "Bamberg"]
[Date "2019.06.01"]
[Round "6.15"]
[White "Kunath, Tim"]
[Black "Promyshlyanskiy, Vitaliy"]
[Result "0-1"]
[ECO "C44"]
[WhiteElo "2103"]
[BlackElo "2282"]
[Annotator "NA"]
[PlyCount "28"]
[EventDate "2019.05.12"]
[EventType "swiss"]
[EventCountry "GER"]
[SourceTitle "playchess.com"]
[Source "ChessBase"]
[SourceQuality "1"]
[TimeControl "40/5400+30:900+30"]

1. e4 {[%emt 0:00:00]} Nc6 {[%emt 0:00:00]} 2. d4 {[%emt 0:00:00]} e5 {[%emt 0:00:00]} 3. Nf3 {[%emt 0:05:09]} exd4 {[%emt 0:00:00]} 4. Nxd4 {[%emt 0:00:07]} Nf6 {[%emt 0:00:02]} 5. Nc3 {[%emt 0:00:27]} Bb4 {[%emt 0:01:05]} 6. Nxc6 {[%emt 0:00:07]} bxc6 {[%emt 0:00:09]} 7. Bd3 {[%emt 0:00:02]} d5 {[%emt 0:00:37]} 8. exd5 {[%emt 0:07:00]} cxd5 {[%emt 0:01:14]} 9. O-O {[%emt 0:00:09]} O-O {[%emt 0:00:25]} 10. Bg5 {[%emt 0:00:17]} Be6 {[%emt 0:02:44]} 11. Bxf6 {[%emt 0:07:38]} Qxf6 {[%emt 0:01:03]} 12. Nxd5 {[%emt 0:00:25]} Bxd5 {[%emt 0:02:19]} 13. Qh5 {[%emt 0:00:14]} Rfd8 {[%emt 0:00:24]} 14. Qxh7+ {[%emt 0:06:27]} Kf8 {[%emt 0:03:02]} 0-1

[Event "Bamberg-Open 2019"]
[Site "Bamberg"]
[Date "2019.06.01"]
[Round "6.16"]
[White "Sukaylo, Aleksey"]
[Black "Chennaoui, Yasin"]
[Result "1-0"]
[ECO "C41"]
[WhiteElo "2097"]
[BlackElo "2184"]
[Annotator "ChessBase"]
[PlyCount "87"]
[EventDate "2019.05.12"]
[EventType "swiss"]
[EventCountry "GER"]
[SourceTitle "playchess.com"]
[Source "ChessBase"]
[SourceQuality "1"]
[TimeControl "40/5400+30:900+30"]

1. e4 {[%emt 0:00:00]} d6 {[%emt 0:00:00]} 2. d4 {[%emt 0:00:00]} Nf6 {[%emt 0:00:00]} 3. Nc3 {[%emt 0:00:00]} e5 {[%emt 0:00:00]} 4. Nf3 {[%emt 0:00:00]} Nbd7 {[%emt 0:00:00]} 5. Bc4 {[%emt 0:00:03]} Be7 {[%emt 0:00:00]} 6. O-O {[%emt 0:00:15]} Nb6 {[%emt 0:00:53]} 7. Be2 {[%emt 0:03:06]} Nfd7 {[%emt 0:00:14]} 8. a4 {[%emt 0:19:12]} a5 {[%emt 0:00:04]} 9. Rb1 {[%emt 0:00:15]} O-O {[%emt 0:00:34]} 10. Be3 {[%emt 0:02:50]} exd4 {[%emt 0:14:28]} 11. Nxd4 {[%emt 0:00:57]} Nc5 {[%emt 0:00:39]} 12. b3 {[%emt 0:09:10]} d5 {[%emt 0:06:46]} 13. exd5 {[%emt 0:06:10]} Nxd5 {[%emt 0:00:21]} 14. Nxd5 {[%emt 0:00:07]} Qxd5 {[%emt 0:00:29]} 15. Bc4 {[%emt 0:03:29]} Qe5 {[%emt 0:00:54]} 16. Re1 {[%emt 0:03:50]} Bd6 {[%emt 0:11:38]} 17. g3 {[%emt 0:01:47]} Qf6 {[%emt 0:00:47]} 18. Nb5 {[%emt 0:01:03]} Ne4 {[%emt 0:03:07]} 19. Bd4 {[%emt 0:04:06]} Qg6 {[%emt 0:00:02]} 20. Bd3 {[%emt 0:05:02]} f5 {[%emt 0:04:34]} 21. Nxd6 {[%emt 0:01:33]} Qxd6 {[%emt 0:07:19]} 22. Bc4+ {[%emt 0:09:06]} Kh8 {[%emt 0:00:04]} 23. Be3 {[%emt 0:02:26]} Qf6 {[%emt 0:06:29]} 24. Qh5 {[%emt 0:03:16]} Bd7 {[%emt 0:03:13]} 25. Rbd1 {[%emt 0:01:51]} Be8 {[%emt 0:01:45]} 26. Qf3 {[%emt 0:04:46]} Bc6 {[%emt 0:00:24]} 27. Bd5 {[%emt 0:02:17]} Nc3 {[%emt 0:02:21]} 28. Bd4 {[%emt 0:00:32]} Bxd5 {[%emt 0:00:07]} 29. Qxc3 {[%emt 0:00:07]} Qf7 {[%emt 0:01:47]} 30. Bxg7+ {[%emt 0:00:08]} Qxg7 {[%emt 0:00:02]} 31. Qxg7+ {[%emt 0:00:05]} Kxg7 {[%emt 0:00:03]} 32. Rxd5 {[%emt 0:00:09]} Rf7 {[%emt 0:06:32]} 33. Ree5 {[%emt 0:00:22]} f4 {[%emt 0:00:19]} 34. Rxa5 {[%emt 0:02:44]} Raf8 {[%emt 0:00:12]} 35. g4 {[%emt 0:00:46]} b6 {[%emt 0:02:22]} 36. Rg5+ {[%emt 0:01:21]} Kh8 {[%emt 0:01:07]} 37. Raf5 {[%emt 0:01:17]} f3 {[%emt 0:00:09]} 38. Rxf7 {[%emt 0:00:28]} Rxf7 {[%emt 0:00:02]} 39. Rf5 {[%emt 0:00:19]} Rg7 {[%emt 0:00:04]} 40. Rf8+ {[%emt 0:00:05]} Rg8 {[%emt 0:00:07]} 41. Rxg8+ {[%emt 0:15:08]} Kxg8 {[%emt 0:15:03]} 42. b4 {[%emt 0:00:25]} c5 {[%emt 0:00:02]} 43. a5 {[%emt 0:00:15]} bxa5 {[%emt 0:00:31]} 44. bxa5 {[%emt 0:00:07]} 1-0

[Event "Bamberg-Open 2019"]
[Site "Bamberg"]
[Date "2019.06.01"]
[Round "6.17"]
[White "Johansson, Jukka"]
[Black "Schmidt, Justus"]
[Result "1-0"]
[ECO "D12"]
[WhiteElo "2071"]
[BlackElo "2153"]
[Annotator "ChessBase"]
[PlyCount "73"]
[EventDate "2019.05.12"]
[EventType "swiss"]
[EventCountry "GER"]
[SourceTitle "playchess.com"]
[Source "ChessBase"]
[SourceQuality "1"]
[TimeControl "40/5400+30:900+30"]

1. d4 {[%emt 0:00:00]} d5 {[%emt 0:00:00]} 2. c4 {[%emt 0:00:00]} c6 {[%emt 0:00:00]} 3. Nf3 {[%emt 0:00:00]} Nf6 {[%emt 0:00:00]} 4. e3 {[%emt 0:00:15]} Bf5 {[%emt 0:00:34]} 5. Nc3 {[%emt 0:01:29]} e6 {[%emt 0:00:04]} 6. Nh4 {[%emt 0:02:49]} Bg4 {[%emt 0:00:13]} 7. Qb3 {[%emt 0:03:28]} Qb6 {[%emt 0:00:11]} 8. h3 {[%emt 0:01:44]} Bh5 {[%emt 0:00:05]} 9. g4 {[%emt 0:02:00]} Bg6 {[%emt 0:01:21]} 10. Nxg6 {[%emt 0:02:08]} hxg6 {[%emt 0:00:05]} 11. Bg2 {[%emt 0:02:38]} Be7 {[%emt 0:02:14]} 12. Bd2 {[%emt 0:08:35]} g5 {[%emt 0:10:26]} 13. O-O-O {[%emt 0:11:54]} Qxb3 {[%emt 0:18:31]} 14. axb3 {[%emt 0:00:10]} Nbd7 {[%emt 0:01:36]} 15. e4 {[%emt 0:13:43]} Nxe4 {[%emt 0:06:14]} 16. Nxe4 {[%emt 0:00:17]} dxe4 {[%emt 0:00:04]} 17. Bxe4 {[%emt 0:00:54]} O-O-O {[%emt 0:03:22]} 18. Kc2 {[%emt 0:09:30]} g6 {[%emt 0:17:54]} 19. Bg2 {[%emt 0:04:33]} Nb6 {[%emt 0:04:07]} 20. Be3 {[%emt 0:01:41]} Rhe8 {[%emt 0:06:29]} 21. Ra1 {[%emt 0:02:06]} Kb8 {[%emt 0:01:32]} 22. f4 {[%emt 0:12:18]} Bf6 {[%emt 0:04:51]} 23. fxg5 {[%emt 0:05:54]} Bxd4 {[%emt 0:01:11]} 24. Bxd4 {[%emt 0:01:28]} Rxd4 {[%emt 0:00:05]} 25. Rad1 {[%emt 0:02:26]} e5 {[%emt 0:01:55]} 26. Rhf1 {[%emt 0:01:36]} Re7 {[%emt 0:01:54]} 27. Rxd4 {[%emt 0:03:53]} exd4 {[%emt 0:00:07]} 28. Kd2 {[%emt 0:00:45]} Re3 {[%emt 0:13:10]} 29. Rf3 {[%emt 0:00:53]} Re7 {[%emt 0:00:05]} 30. Rf4 {[%emt 0:00:38]} Re3 {[%emt 0:01:02]} 31. Rf3 {[%emt 0:00:47]} Re7 {[%emt 0:00:04]} 32. h4 {[%emt 0:00:08]} Re4 {[%emt 0:02:24]} 33. Rg3 {[%emt 0:01:00]} Re5 {[%emt 0:01:22]} 34. h5 {[%emt 0:00:19]} Rxg5 {[%emt 0:00:48]} 35. h6 {[%emt 0:00:12]} Re5 {[%emt 0:00:04]} 36. h7 {[%emt 0:03:21]} Re8 {[%emt 0:00:03]} 37. Rf3 {[%emt 0:00:05]} 1-0

[Event "Bamberg-Open 2019"]
[Site "Bamberg"]
[Date "2019.06.01"]
[Round "6.18"]
[White "Legahn, Dirk"]
[Black "Haselbeck, Franz"]
[Result "1-0"]
[ECO "A45"]
[WhiteElo "2132"]
[BlackElo "1867"]
[Annotator "ChessBase"]
[PlyCount "69"]
[EventDate "2019.05.12"]
[EventType "swiss"]
[EventCountry "GER"]
[SourceTitle "playchess.com"]
[Source "ChessBase"]
[SourceQuality "1"]
[TimeControl "40/5400+30:900+30"]

1. d4 {[%emt 0:00:00]} Nf6 {[%emt 0:00:00]} 2. Bf4 {[%emt 0:00:00]} c5 {[%emt 0:00:07]} 3. d5 {[%emt 0:00:00]} d6 {[%emt 0:00:29]} 4. Nc3 {[%emt 0:00:00]} g6 {[%emt 0:01:10]} 5. e4 {[%emt 0:00:16]} Bg7 {[%emt 0:00:24]} 6. Be2 {[%emt 0:00:30]} O-O {[%emt 0:00:19]} 7. h3 {[%emt 0:00:23]} Na6 {[%emt 0:08:36]} 8. Nf3 {[%emt 0:00:30]} Nc7 {[%emt 0:01:12]} 9. a4 {[%emt 0:00:12]} a6 {[%emt 0:00:40]} 10. Nd2 {[%emt 0:05:25]} Rb8 {[%emt 0:00:51]} 11. a5 {[%emt 0:03:31]} b5 {[%emt 0:01:04]} 12. axb6 {[%emt 0:00:18]} Rxb6 {[%emt 0:00:21]} 13. Nc4 {[%emt 0:08:34]} Rb4 {[%emt 0:02:07]} 14. O-O {[%emt 0:07:36]} Bd7 {[%emt 0:03:55]} 15. e5 {[%emt 0:24:32]} Nh5 {[%emt 0:11:55]} 16. Bh2 {[%emt 0:04:07]} dxe5 {[%emt 0:03:05]} 17. Bxe5 {[%emt 0:04:59]} Bxe5 {[%emt 0:01:09]} 18. Nxe5 {[%emt 0:00:16]} Rd4 {[%emt 0:00:40]} 19. Qc1 {[%emt 0:09:04]} Nf4 {[%emt 0:02:28]} 20. Bf3 {[%emt 0:01:02]} Ncxd5 {[%emt 0:06:21]} 21. Nxd5 {[%emt 0:01:04]} Nxd5 {[%emt 0:01:48]} 22. c3 {[%emt 0:00:34]} Rh4 {[%emt 0:07:26]} 23. Bxd5 {[%emt 0:03:16]} Bf5 {[%emt 0:01:36]} 24. Rd1 {[%emt 0:01:18]} Qc7 {[%emt 0:02:22]} 25. Nf3 {[%emt 0:01:33]} Rh5 {[%emt 0:04:36]} 26. g4 {[%emt 0:01:32]} Rxh3 {[%emt 0:00:26]} 27. gxf5 {[%emt 0:00:14]} gxf5 {[%emt 0:02:07]} 28. Kg2 {[%emt 0:01:35]} Rh5 {[%emt 0:01:03]} 29. Rh1 {[%emt 0:02:47]} Rxh1 {[%emt 0:00:25]} 30. Kxh1 {[%emt 0:00:59]} Kh8 {[%emt 0:00:52]} 31. Rxa6 {[%emt 0:01:53]} c4 {[%emt 0:02:30]} 32. Qe3 {[%emt 0:01:38]} f4 {[%emt 0:06:50]} 33. Qe5+ {[%emt 0:00:58]} Qxe5 {[%emt 0:00:32]} 34. Nxe5 {[%emt 0:00:06]} Rb8 {[%emt 0:00:41]} 35. Ra8 {[%emt 0:00:08]} 1-0

[Event "Bamberg-Open 2019"]
[Site "Bamberg"]
[Date "2019.06.01"]
[Round "6.19"]
[White "Birkner, Frank"]
[Black "Stauch, Edgar"]
[Result "1/2-1/2"]
[ECO "D02"]
[WhiteElo "1784"]
[BlackElo "2207"]
[Annotator "ChessBase"]
[PlyCount "117"]
[EventDate "2019.05.12"]
[EventType "swiss"]
[EventCountry "GER"]
[SourceTitle "playchess.com"]
[Source "ChessBase"]
[SourceQuality "1"]
[TimeControl "40/5400+30:900+30"]

1. d4 {[%emt 0:00:00]} d5 {[%emt 0:01:25]} 2. Nf3 {[%emt 0:00:00]} Nf6 {[%emt 0:00:19]} 3. Bf4 {[%emt 0:00:07]} e6 {[%emt 0:00:09]} 4. e3 {[%emt 0:00:09]} Bd6 {[%emt 0:00:24]} 5. c3 {[%emt 0:01:59]} O-O {[%emt 0:05:22]} 6. Bd3 {[%emt 0:01:33]} b6 {[%emt 0:00:59]} 7. Qe2 {[%emt 0:01:35]} c5 {[%emt 0:01:15]} 8. Ne5 {[%emt 0:01:21]} Bb7 {[%emt 0:01:12]} 9. Nd2 {[%emt 0:00:45]} Qc7 {[%emt 0:11:43]} 10. O-O {[%emt 0:16:48]} Nbd7 {[%emt 0:02:31]} 11. Nxd7 {[%emt 0:00:56]} Qxd7 {[%emt 0:02:02]} 12. Bxd6 {[%emt 0:06:44]} Qxd6 {[%emt 0:00:02]} 13. f4 {[%emt 0:01:27]} Nd7 {[%emt 0:11:18]} 14. g4 {[%emt 0:02:51]} f5 {[%emt 0:00:21]} 15. gxf5 {[%emt 0:02:38]} exf5 {[%emt 0:00:04]} 16. Nf3 {[%emt 0:00:46]} c4 {[%emt 0:08:52]} 17. Bc2 {[%emt 0:00:32]} Bc8 {[%emt 0:08:42]} 18. Ne5 {[%emt 0:03:16]} Nf6 {[%emt 0:01:44]} 19. Kh1 {[%emt 0:01:11]} b5 {[%emt 0:06:45]} 20. a3 {[%emt 0:03:22]} a5 {[%emt 0:01:16]} 21. Rg1 {[%emt 0:00:42]} Ra7 {[%emt 0:05:10]} 22. Rg5 {[%emt 0:01:06]} Ng4 {[%emt 0:04:09]} 23. h3 {[%emt 0:03:46]} Qh6 {[%emt 0:02:28]} 24. Kg2 {[%emt 0:05:23]} Nxe5 {[%emt 0:00:39]} 25. dxe5 {[%emt 0:00:23]} Re7 {[%emt 0:03:11]} 26. Rg3 {[%emt 0:01:39]} Re6 {[%emt 0:04:22]} 27. Kh2 {[%emt 0:02:07]} Rg6 {[%emt 0:00:08]} 28. Rxg6 {[%emt 0:02:10]} Qxg6 {[%emt 0:00:01]} 29. Rg1 {[%emt 0:04:01]} Qb6 {[%emt 0:00:31]} 30. Qd2 {[%emt 0:03:47]} Be6 {[%emt 0:00:37]} 31. Bd1 {[%emt 0:01:19]} Rd8 {[%emt 0:02:04]} 32. Bf3 {[%emt 0:00:31]} Rd7 {[%emt 0:03:49]} 33. Rd1 {[%emt 0:02:39]} Qb7 {[%emt 0:01:07]} 34. Qe1 {[%emt 0:01:31]} Qb6 {[%emt 0:00:57]} 35. Rd4 {[%emt 0:00:58]} Qc5 {[%emt 0:00:39]} 36. Qd2 {[%emt 0:00:16]} Qc6 {[%emt 0:01:08]} 37. Kg3 {[%emt 0:01:11]} Kf8 {[%emt 0:02:03]} 38. Kf2 {[%emt 0:06:53]} Ke7 {[%emt 0:01:37]} 39. Qe1 {[%emt 0:00:13]} Kd8 {[%emt 0:01:17]} 40. Qg1 {[%emt 0:00:37]} Kc7 {[%emt 0:00:52]} 41. Rd1 {[%emt 0:15:34]} Qc5 {[%emt 0:16:30]} 42. Rd2 {[%emt 0:04:41]} b4 {[%emt 0:01:10]} 43. axb4 {[%emt 0:03:10]} axb4 {[%emt 0:00:16]} 44. Qa1 {[%emt 0:02:47]} b3 {[%emt 0:04:08]} 45. Rd1 {[%emt 0:03:58]} g5 {[%emt 0:00:53]} 46. fxg5 {[%emt 0:03:57]} f4 {[%emt 0:00:03]} 47. Rd4 {[%emt 0:01:04]} fxe3+ {[%emt 0:00:06]} 48. Kxe3 {[%emt 0:00:03]} Kb7 {[%emt 0:00:53]} 49. Qh1 {[%emt 0:00:00]} Kc6 {[%emt 0:00:00]} 50. Qg2 {[%emt 0:00:00]} Re7 {[%emt 0:00:00]} 51. h4 {[%emt 0:00:00]} Bf7 {[%emt 0:00:00]} 52. Kf4 {[%emt 0:00:00]} Rxe5 {[%emt 0:00:00]} 53. Kg3 {[%emt 0:01:51]} Rf5 {[%emt 0:00:52]} 54. Qf1 {[%emt 0:01:26]} Bh5 {[%emt 0:00:29]} 55. Rxc4 {[%emt 0:00:50]} Rxf3+ {[%emt 0:00:18]} 56. Qxf3 {[%emt 0:00:01]} Qxc4 {[%emt 0:01:00]} 57. Qxh5 {[%emt 0:00:02]} Qd3+ {[%emt 0:00:15]} 58. Qf3 {[%emt 0:00:08]} Qc2 59. Qf2 1/2-1/2

[Event "Bamberg-Open 2019"]
[Site "Bamberg"]
[Date "2019.06.01"]
[Round "6.20"]
[White "Grimm, Pascal"]
[Black "Mittag, Ralf"]
[Result "1-0"]
[ECO "A40"]
[WhiteElo "1880"]
[BlackElo "2203"]
[Annotator "ChessBase"]
[PlyCount "155"]
[EventDate "2019.05.12"]
[EventType "swiss"]
[EventCountry "GER"]
[SourceTitle "playchess.com"]
[Source "ChessBase"]
[SourceQuality "1"]
[TimeControl "40/5400+30:900+30"]

1. d4 {[%emt 0:00:00]} g6 {[%emt 0:00:00]} 2. Bf4 {[%emt 0:00:00]} Bg7 {[%emt 0:00:00]} 3. Nc3 {[%emt 0:01:47]} d6 {[%emt 0:02:15]} 4. e4 {[%emt 0:00:43]} Nc6 {[%emt 0:00:16]} 5. d5 {[%emt 0:05:31]} Ne5 {[%emt 0:02:26]} 6. Be2 {[%emt 0:04:00]} c6 {[%emt 0:01:33]} 7. Nf3 {[%emt 0:03:25]} Nxf3+ {[%emt 0:00:16]} 8. Bxf3 {[%emt 0:00:03]} Bd7 {[%emt 0:02:26]} 9. O-O {[%emt 0:03:27]} Nf6 {[%emt 0:01:57]} 10. Qd2 {[%emt 0:01:07]} O-O {[%emt 0:00:21]} 11. Rfe1 {[%emt 0:06:25]} cxd5 {[%emt 0:01:07]} 12. exd5 {[%emt 0:06:08]} Re8 {[%emt 0:01:24]} 13. h3 {[%emt 0:00:26]} Rc8 {[%emt 0:02:02]} 14. a4 {[%emt 0:02:44]} Qb6 {[%emt 0:01:45]} 15. Ra3 {[%emt 0:05:32]} a6 {[%emt 0:02:38]} 16. Be3 {[%emt 0:09:01]} Qc7 {[%emt 0:04:07]} 17. a5 {[%emt 0:00:15]} e6 {[%emt 0:02:05]} 18. Bb6 {[%emt 0:02:38]} Qb8 {[%emt 0:00:34]} 19. Rb3 {[%emt 0:20:17]} e5 {[%emt 0:07:50]} 20. Ra3 {[%emt 0:00:41]} Kh8 {[%emt 0:03:10]} 21. b4 {[%emt 0:00:36]} Ng8 {[%emt 0:03:15]} 22. Rb3 {[%emt 0:03:09]} f5 {[%emt 0:03:15]} 23. b5 {[%emt 0:02:30]} axb5 {[%emt 0:05:46]} 24. Nxb5 {[%emt 0:03:18]} Bh6 {[%emt 0:00:37]} 25. Qd1 {[%emt 0:02:05]} Bxb5 {[%emt 0:03:05]} 26. Rxb5 {[%emt 0:00:02]} Nf6 {[%emt 0:02:17]} 27. Qb1 {[%emt 0:06:58]} Rc3 {[%emt 0:09:37]} 28. Be3 {[%emt 0:02:45]} Bxe3 {[%emt 0:00:44]} 29. Rxe3 {[%emt 0:01:26]} Rxe3 {[%emt 0:00:07]} 30. fxe3 {[%emt 0:00:05]} Qa7 {[%emt 0:00:10]} 31. Qb3 {[%emt 0:01:56]} Re7 {[%emt 0:00:15]} 32. Kh2 {[%emt 0:00:29]} Kg7 {[%emt 0:03:28]} 33. c4 {[%emt 0:00:34]} Rc7 {[%emt 0:00:30]} 34. g3 {[%emt 0:01:03]} Nd7 {[%emt 0:00:12]} 35. Rb6 {[%emt 0:02:39]} Nc5 {[%emt 0:03:39]} 36. Qb2 {[%emt 0:01:26]} Qxa5 {[%emt 0:09:19]} 37. Rxd6 {[%emt 0:00:04]} Nd3 {[%emt 0:00:10]} 38. Qe2 {[%emt 0:03:13]} e4 {[%emt 0:01:40]} 39. Bg2 {[%emt 0:00:22]} Rxc4 {[%emt 0:00:39]} 40. Rd7+ {[%emt 0:00:26]} Kh6 {[%emt 0:00:47]} 41. g4 {[%emt 0:05:57]} Qb5 {[%emt 0:14:11]} 42. g5+ {[%emt 0:04:46]} Kxg5 {[%emt 0:00:17]} 43. Rxh7 {[%emt 0:00:45]} Qxd5 {[%emt 0:00:42]} 44. h4+ {[%emt 0:00:41]} Kf6 {[%emt 0:00:05]} 45. Qa2 {[%emt 0:01:33]} Qd6+ {[%emt 0:02:29]} 46. Kh3 {[%emt 0:00:06]} b5 {[%emt 0:00:24]} 47. Bf1 {[%emt 0:03:09]} Qb6 {[%emt 0:03:05]} 48. Kh2 {[%emt 0:01:56]} Qd6+ {[%emt 0:02:31]} 49. Kh3 {[%emt 0:00:40]} f4 {[%emt 0:03:25]} 50. Qa8 {[%emt 0:00:25]} Qe6+ {[%emt 0:00:32]} 51. Kh2 {[%emt 0:00:34]} Rc2+ {[%emt 0:00:17]} 52. Kh1 {[%emt 0:00:19]} Nf2+ {[%emt 0:03:22]} 53. Kh2 {[%emt 0:00:07]} Ng4+ {[%emt 0:02:52]} 54. Kg1 {[%emt 0:00:02]} Rc8 {[%emt 0:03:02]} 55. Qa7 {[%emt 0:01:15]} Rg8 {[%emt 0:03:35]} 56. Qd4+ {[%emt 0:00:48]} Ne5 {[%emt 0:00:25]} 57. exf4 {[%emt 0:00:24]} Re8 {[%emt 0:03:06]} 58. fxe5+ {[%emt 0:00:40]} Qxe5 {[%emt 0:00:05]} 59. Qf2+ {[%emt 0:00:26]} Qf5 {[%emt 0:00:48]} 60. Bxb5 {[%emt 0:00:28]} Re6 {[%emt 0:01:23]} 61. Bd7 {[%emt 0:00:40]} Qxf2+ {[%emt 0:00:17]} 62. Kxf2 {[%emt 0:00:00]} Rd6 {[%emt 0:00:15]} 63. Bg4 {[%emt 0:00:17]} Rd3 {[%emt 0:00:14]} 64. Ra7 {[%emt 0:01:01]} Rd8 {[%emt 0:01:23]} 65. Ra6+ {[%emt 0:00:03]} Kg7 {[%emt 0:00:10]} 66. Re6 {[%emt 0:00:22]} Rd2+ {[%emt 0:00:40]} 67. Be2 {[%emt 0:00:30]} Rd4 {[%emt 0:00:34]} 68. Ke3 {[%emt 0:00:03]} Ra4 {[%emt 0:00:10]} 69. Rxe4 {[%emt 0:00:08]} Ra3+ {[%emt 0:00:13]} 70. Kf4 {[%emt 0:00:08]} Rh3 {[%emt 0:00:09]} 71. Kg5 {[%emt 0:00:19]} Rg3+ {[%emt 0:00:24]} 72. Bg4 {[%emt 0:00:03]} Kf7 {[%emt 0:00:09]} 73. Ra4 {[%emt 0:00:21]} Rg1 {[%emt 0:00:25]} 74. Ra7+ {[%emt 0:00:28]} Kf8 {[%emt 0:00:16]} 75. Kf6 {[%emt 0:01:46]} Kg8 {[%emt 0:00:10]} 76. Rg7+ {[%emt 0:00:16]} Kh8 {[%emt 0:00:20]} 77. Rxg6 {[%emt 0:00:12]} Rb1 {[%emt 0:01:06]} 78. Rh6+ {[%emt 0:00:33]} 1-0